bitfinex/quotes_BTCUSD_20250212
["timestamp","ask_amount","ask_price","bid_price","bid_amount"]
[1739364069462,0.07852366,96339.0,96333.0,0.01941025]
[1739364070658,0.07852366,96339.0,96334.0,0.02818064]
[1739364071906,0.07852366,96339.0,96335.0,0.01941025]
[1739364073157,0.07852366,96339.0,96336.0,0.01941025]
[1739364074334,0.07852366,96339.0,96337.0,0.0207576]
[1739364074538,0.18190365,96338.0,96337.0,0.0207576]
[1739364075068,0.18190365,96338.0,96337.0,0.01941025]
[1739364075479,0.0814,96337.0,96336.0,0.001]
[1739364075821,0.18390365,96337.0,96336.0,0.001]
[1739364076020,0.0817,96336.0,96315.0,0.01083809]
[1739364076256,0.09519511,96334.0,96315.0,0.01083809]
[1739364076560,0.075,96333.0,96315.0,0.01083809]
[1739364078706,0.076,96333.0,96315.0,0.01083809]
[1739364080467,0.076,96333.0,96316.0,0.00103816]
[1739364081463,0.076,96333.0,96317.0,0.0499]
[1739364081668,0.076,96333.0,96325.0,0.01943252]
[1739364081989,0.076,96333.0,96326.0,0.00879392]
[1739364082405,0.075,96333.0,96326.0,0.00879392]
[1739364082969,0.075,96333.0,96327.0,0.01943252]
[1739364083611,0.15,96349.0,96327.0,0.01943252]
[1739364083838,0.07992366,96339.0,96327.0,0.01943252]
[1739364084601,0.07992366,96339.0,96328.0,0.01943252]
[1739364085608,0.07992366,96339.0,96329.0,0.0013646]
[1739364085829,0.08092366,96339.0,96328.0,0.01943252]
[1739364086029,0.08092366,96339.0,96324.0,0.0001065]
[1739364086030,0.08092366,96339.0,96329.0,0.01943252]
[1739364086301,0.07992366,96339.0,96329.0,0.01943252]
[1739364086653,0.08092366,96339.0,96330.0,0.00743562]
[1739364087458,0.08092366,96339.0,96330.0,0.02686814]
[1739364087842,0.07992366,96339.0,96330.0,0.01943252]
[1739364088042,0.0769,96337.0,96330.0,0.01943252]
[1739364088265,0.0473,96336.0,96330.0,0.01943252]
[1739364088469,0.0769,96335.0,96330.0,0.01943252]
[1739364089256,0.0769,96335.0,96324.0,0.0001065]
[1739364089505,0.1451291,96334.0,96324.0,0.0001065]
[1739364089656,0.0769,96333.0,96324.0,0.0001065]
[1739364095610,0.10250365,96332.0,96324.0,0.0001065]
[1739364095970,0.0474,96325.0,96324.0,0.0001065]
[1739364096173,0.22880365,96325.0,96324.0,0.0001065]
[1739364097566,0.22880365,96325.0,96324.0,0.0011065]
[1739364097774,0.22880365,96325.0,96324.0,0.0021065]
[1739364098271,0.22880365,96325.0,96324.0,0.0011065]
[1739364099077,0.38452565,96325.0,96324.0,0.0061065]
[1739364099395,0.24122761,96325.0,96324.0,0.0061065]
[1739364099854,0.39694961,96325.0,96324.0,0.0061065]
[1739364102082,0.54694961,96325.0,96324.0,0.0061065]
[1739364102282,0.54694961,96325.0,96324.0,0.0011065]
[1739364103113,0.54694961,96325.0,96324.0,0.0001065]
[1739364103520,0.54694961,96325.0,96324.0,0.0011065]
[1739364103718,0.54694961,96325.0,96324.0,0.0061065]
[1739364107047,0.64945326,96325.0,96324.0,0.0061065]
[1739364107245,0.79713894,96325.0,96324.0,0.0061065]
[1739364109090,0.69463529,96325.0,96324.0,0.0061065]
[1739364109757,0.69463529,96325.0,96324.0,0.0051065]
[1739364110862,0.69563529,96325.0,96324.0,0.0051065]
[1739364111017,0.69563529,96325.0,96324.0,0.0001065]
[1739364111415,0.69863529,96325.0,96324.0,0.0011065]
[1739364114327,0.69885916,96325.0,96324.0,0.0011065]
[1739364135676,0.34573716,96325.0,96324.0,0.0011065]
[1739364135896,0.26683716,96325.0,96324.0,0.0011065]
[1739364136454,0.41683716,96325.0,96324.0,0.0011065]
[1739364137787,0.10250365,96325.0,96324.0,0.0011065]
[1739364138400,0.11226257,96325.0,96324.0,0.0011065]
[1739364140706,0.11226257,96325.0,96304.0,0.004913]
[1739364140874,0.11226257,96325.0,96310.0,4.415e-05]
[1739364141090,0.19059876,96320.0,96310.0,4.415e-05]
[1739364142287,0.09529938,96320.0,96310.0,4.415e-05]
[1739364142688,0.09529938,96320.0,96310.0,0.00104415]
[1739364143023,0.09529938,96320.0,96310.0,4.415e-05]
[1739364143474,0.09629938,96320.0,96310.0,4.415e-05]
[1739364143647,0.09629938,96320.0,96311.0,0.0464]
[1739364143855,0.09529938,96320.0,96311.0,0.0464]
[1739364147934,0.09529938,96320.0,96312.0,0.0271]
[1739364148299,0.09529938,96320.0,96313.0,0.00634338]
[1739364153600,0.00022387,96325.0,96313.0,0.00634338]
[1739364154816,0.09529938,96323.0,96313.0,0.00634338]
[1739364155224,0.00122387,96325.0,96313.0,0.00634338]
[1739364155815,0.00022387,96325.0,96313.0,0.00634338]
[1739364155952,0.001,96323.0,96313.0,0.00634338]
[1739364156390,0.00022387,96325.0,96313.0,0.00634338]
[1739364156739,0.00122387,96325.0,96313.0,0.00634338]
[1739364157365,0.00122387,96325.0,96311.0,0.0465066]
[1739364158237,0.00022387,96325.0,96311.0,0.0465066]
[1739364159198,0.09529938,96321.0,96311.0,0.0465066]
[1739364160625,0.00022387,96325.0,96311.0,0.0465066]
[1739364161145,0.09529938,96321.0,96311.0,0.0465066]
[1739364161527,0.00022387,96325.0,96312.0,0.00634447]
[1739364161939,0.00022387,96325.0,96311.0,0.0465066]
[1739364162727,0.09529938,96321.0,96311.0,0.0465066]
[1739364163172,0.09529938,96321.0,96312.0,0.00634442]
[1739364163503,0.09529938,96321.0,96311.0,0.0465066]
[1739364166215,0.00022387,96325.0,96311.0,0.0465066]
[1739364167433,0.00122387,96325.0,96311.0,0.0465066]
[1739364168757,0.09529938,96321.0,96311.0,0.0465066]
[1739364173520,0.09552325,96321.0,96311.0,0.0465066]
[1739364174279,0.00022387,96321.0,96311.0,0.0465066]
[1739364174735,0.00022387,96321.0,96312.0,0.00494189]
[1739364177542,0.00122387,96321.0,96312.0,0.00494189]
[1739364179474,0.00122387,96321.0,96311.0,0.0465066]
[1739364180121,0.00022387,96321.0,96311.0,0.0465066]
[1739364180963,0.00022387,96321.0,96312.0,0.00494189]
[1739364182305,0.00022366,96339.0,96312.0,0.00494189]
[1739364182517,0.09529938,96330.0,96312.0,0.00494189]
[1739364182703,0.09529938,96330.0,96311.0,0.0465066]
[1739364183039,0.001,96321.0,96311.0,0.0465066]
[1739364183238,0.001,96321.0,96312.0,0.00494189]
[1739364183443,0.09529938,96330.0,96312.0,0.00494189]
[1739364183710,0.09529938,96330.0,96311.0,0.0465066]
[1739364183911,0.09629938,96330.0,96311.0,0.0465066]
[1739364184440,0.09529938,96321.0,96311.0,0.0465066]
[1739364186643,0.09529938,96321.0,96311.0,0.0475066]
[1739364186848,0.09529938,96321.0,96312.0,0.00494189]
[1739364187977,0.10758117,96321.0,96312.0,0.00494189]
[1739364190398,0.10758117,96321.0,96311.0,0.0001066]
[1739364198212,0.01228179,96321.0,96311.0,0.0001066]
[1739364198425,0.0801,96322.0,96311.0,0.0001066]
[1739364200355,0.00022387,96330.0,96312.0,0.25972196]
[1739364200570,0.00022387,96330.0,96312.0,0.17680365]
[1739364200781,0.00022387,96330.0,96327.0,0.02102342]
[1739364200987,0.00022387,96330.0,96329.0,0.155716]
[1739364201204,0.00022387,96330.0,96329.0,0.25821965]
[1739364201421,0.00022387,96330.0,96329.0,0.26238005]
[1739364202069,0.00022387,96330.0,96329.0,0.10666405]
[1739364202273,0.00022387,96330.0,96329.0,0.10866405]
[1739364202743,0.00022387,96330.0,96329.0,0.10666405]
[1739364203171,0.00022387,96330.0,96329.0,0.0121604]
[1739364203583,0.00022387,96330.0,96329.0,0.01]
[1739364203993,0.00022387,96330.0,96329.0,0.008]
[1739364204196,0.00022387,96330.0,96329.0,0.01]
[1739364204370,0.00022387,96330.0,96329.0,0.002]
[1739364204778,0.00022387,96330.0,96329.0,0.01314184]
[1739364204981,0.00022387,96330.0,96329.0,0.009]
[1739364205131,0.00022387,96330.0,96329.0,0.00614184]
[1739364205545,0.00022387,96330.0,96329.0,0.01314184]
[1739364206936,0.00022387,96330.0,96329.0,0.009]
[1739364207367,0.00022387,96330.0,96329.0,0.002]
[1739364207563,0.00022387,96330.0,96313.0,0.15]
[1739364207771,0.145343,96330.0,96313.0,0.25250365]
[1739364207978,0.145343,96330.0,96314.0,0.0041239]
[1739364212846,0.145343,96330.0,96315.0,0.00139478]
[1739364216039,0.145343,96330.0,96316.0,0.00412629]
[1739364216555,0.145343,96330.0,96317.0,0.00139046]
[1739364217954,0.00022387,96330.0,96317.0,0.00139046]
[1739364218155,0.00022387,96330.0,96317.0,0.00242862]
[1739364218854,0.00022387,96330.0,96318.0,0.10250365]
[1739364220295,0.00022387,96330.0,96319.0,0.00138615]
[1739364220449,0.00022387,96330.0,96319.0,0.1038898]
[1739364220922,0.00022387,96330.0,96320.0,0.15573]
[1739364221283,0.00022387,96330.0,96319.0,0.1038898]
[1739364221856,0.00022387,96330.0,96320.0,0.00776012]
[1739364222258,0.00022387,96330.0,96320.0,0.00876012]
[1739364223550,0.00022387,96330.0,96320.0,0.16449012]
[1739364223724,0.00022387,96330.0,96321.0,0.00138184]
[1739364224887,0.00022387,96330.0,96321.0,0.00638184]
[1739364226532,0.00022387,96330.0,96321.0,0.00238184]
[1739364226977,0.00022387,96330.0,96321.0,0.00438184]
[1739364227182,0.00022387,96330.0,96321.0,0.00338184]
[1739364227591,0.00022387,96330.0,96321.0,0.01114196]
[1739364227944,0.00022387,96330.0,96321.0,0.16686996]
[1739364228146,0.00022387,96330.0,96321.0,0.01114196]
[1739364228349,0.00022387,96330.0,96323.0,0.155725]
[1739364228801,0.00022387,96330.0,96324.0,0.00137537]
[1739364229004,0.00022387,96330.0,96325.0,0.00103809]
[1739364229202,0.00022387,96330.0,96328.0,0.155717]
[1739364230790,0.00022387,96330.0,96326.0,0.00879815]
[1739364230995,0.00022387,96330.0,96329.0,0.00687873]
[1739364231215,0.00022387,96330.0,96329.0,0.25821965]
[1739364231417,0.00022387,96330.0,96329.0,0.26509838]
[1739364232189,0.00022387,96330.0,96329.0,0.26609838]
[1739364232441,0.00022387,96330.0,96329.0,0.26746298]
[1739364233063,0.00022387,96330.0,96329.0,0.2752231]
[1739364233696,0.00022387,96330.0,96329.0,0.2792231]
[1739364234456,0.00022387,96330.0,96329.0,0.1235071]
[1739364236000,0.07812387,96330.0,96329.0,0.02100345]
[1739364236743,0.07812387,96330.0,96329.0,0.01700345]
[1739364237116,0.07812387,96330.0,96329.0,0.01800345]
[1739364238471,0.07812387,96330.0,96329.0,0.01024333]
[1739364238889,0.07812387,96330.0,96329.0,0.00824333]
[1739364239093,0.07812387,96330.0,96329.0,0.01124333]
[1739364244118,0.07812387,96330.0,96329.0,0.01900345]
[1739364244694,0.00022387,96330.0,96329.0,0.01900345]
[1739364245678,0.00022387,96330.0,96329.0,0.01600345]
[1739364245884,0.00022387,96330.0,96321.0,0.0001066]
[1739364246110,0.00022387,96330.0,96329.0,0.01326965]
[1739364246311,0.00022387,96330.0,96329.0,0.004]
[1739364246497,0.00022387,96330.0,96329.0,0.01326965]
[1739364246693,0.00022387,96330.0,96329.0,0.01426965]
[1739364247642,0.00022387,96330.0,96329.0,0.2724893]
[1739364247874,0.00022387,96330.0,96329.0,0.2684893]
[1739364249313,0.00022387,96330.0,96329.0,0.2724893]
[1739364250393,0.00022387,96330.0,96329.0,0.62777017]
[1739364250633,0.00022387,96330.0,96329.0,0.69767017]
[1739364250944,0.00022387,96330.0,96329.0,0.70737816]
[1739364251351,0.00022387,96330.0,96329.0,0.70337816]
[1739364251555,0.00022387,96330.0,96329.0,0.71837816]
[1739364252166,0.00022387,96330.0,96329.0,0.70337816]
[1739364252418,0.00022387,96330.0,96329.0,0.71737816]
[1739364252615,0.00022387,96330.0,96329.0,0.71637816]
[1739364252969,0.00022387,96330.0,96329.0,0.70837816]
[1739364253183,0.00022387,96330.0,96329.0,0.66147816]
[1739364253392,0.07902387,96330.0,96329.0,0.02497764]
[1739364254292,0.07902387,96330.0,96329.0,0.01897764]
[1739364254496,0.07902387,96330.0,96329.0,0.02397764]
[1739364254703,0.07902387,96330.0,96329.0,0.01426965]
[1739364254918,0.07902387,96330.0,96329.0,0.02926965]
[1739364255122,0.07902387,96330.0,96329.0,0.02]
[1739364255369,0.07902387,96330.0,96329.0,0.005]
[1739364255581,0.07902387,96330.0,96328.0,0.0001066]
[1739364255791,0.047,96329.0,96328.0,0.0001066]
[1739364255999,0.1255,96329.0,96328.0,0.0001066]
[1739364256211,0.2992942,96329.0,96328.0,0.0001066]
[1739364256416,0.0827,96328.0,96322.0,0.09297106]
[1739364256645,0.14950365,96329.0,96321.0,0.0001066]
[1739364256646,0.10250365,96327.0,96321.0,0.0001066]
[1739364256825,0.155724,96324.0,96321.0,0.0001066]
[1739364257030,0.0827,96323.0,96321.0,0.0001066]
[1739364257627,0.0827,96323.0,96322.0,0.001]
[1739364258384,0.0827,96323.0,96322.0,0.002]
[1739364258792,0.0827,96323.0,96322.0,0.001]
[1739364258996,0.0827,96323.0,96321.0,0.0001066]
[1739364259210,0.0857,96323.0,96322.0,0.001]
[1739364259590,0.0827,96323.0,96321.0,0.0011066]
[1739364259762,0.0827,96323.0,96322.0,0.001]
[1739364259973,0.0877,96323.0,96322.0,0.001]
[1739364260374,0.0877,96323.0,96322.0,0.002]
[1739364260731,0.0877,96323.0,96304.0,0.0001066]
[1739364260935,0.14516315,96320.0,96305.0,0.00889025]
[1739364262541,0.14816315,96320.0,96305.0,0.00889025]
[1739364262674,0.14816315,96320.0,96305.0,0.16464425]
[1739364262882,0.14816315,96320.0,96306.0,0.155752]
[1739364263514,0.14816315,96320.0,96305.0,0.00889025]
[1739364263712,0.14816315,96320.0,96307.0,0.155751]
[1739364264143,0.14516315,96320.0,96305.0,0.16464425]
[1739364264340,0.14616315,96320.0,96305.0,0.00889025]
[1739364264545,0.15116315,96320.0,96305.0,0.00889025]
[1739364264746,0.15116315,96320.0,96305.0,0.16464425]
[1739364264941,0.14616315,96320.0,96305.0,0.16464425]
[1739364265144,0.15116315,96320.0,96306.0,0.155753]
[1739364265342,0.15116315,96320.0,96307.0,0.00107087]
[1739364265754,0.15016315,96320.0,96308.0,0.00808157]
[1739364266082,0.14616315,96320.0,96308.0,0.15655]
[1739364266240,0.14616315,96320.0,96308.0,0.155749]
[1739364266445,0.14616315,96320.0,96309.0,0.00660018]
[1739364266689,0.14616315,96320.0,96309.0,0.16234818]
[1739364266886,0.14516315,96320.0,96309.0,0.16234818]
[1739364267323,0.14616315,96320.0,96309.0,0.16234818]
[1739364267500,0.001,96320.0,96312.0,0.155742]
[1739364267730,0.08274414,96323.0,96312.0,0.155742]
[1739364267908,0.08274414,96323.0,96313.0,0.00659857]
[1739364268128,0.004,96320.0,96313.0,0.00659857]
[1739364268466,0.008,96320.0,96313.0,0.00659857]
[1739364268676,0.008,96320.0,96307.0,0.207667]
[1739364268877,0.14616315,96320.0,96314.0,0.00664736]
[1739364269091,0.14516315,96320.0,96309.0,0.155747]
[1739364269311,0.14516315,96320.0,96311.0,0.155744]
[1739364269524,0.14616315,96320.0,96312.0,0.155743]
[1739364269989,0.14716315,96320.0,96312.0,0.155743]
[1739364270398,0.14516315,96320.0,96312.0,0.155743]
[1739364270861,0.14616315,96320.0,96309.0,0.2077706]
[1739364271034,0.14616315,96320.0,96312.0,0.155743]
[1739364271217,0.15016315,96320.0,96312.0,0.155743]
[1739364271434,0.15016315,96320.0,96310.0,0.155745]
[1739364271673,0.14616315,96320.0,96311.0,0.155745]
[1739364272105,0.0811,96319.0,96309.0,0.0001066]
[1739364272273,0.0451,96318.0,96309.0,0.0001066]
[1739364272596,0.0811,96317.0,96309.0,0.0001066]
[1739364274359,0.0811,96317.0,96309.0,0.0011066]
[1739364275132,0.0811,96317.0,96309.0,0.0001066]
[1739364275586,0.0831,96317.0,96309.0,0.0001066]
[1739364276577,0.0811,96317.0,96309.0,0.0001066]
[1739364276792,0.0841,96317.0,96309.0,0.0001066]
[1739364277386,0.0891,96317.0,96309.0,0.0001066]
[1739364278396,0.0851,96317.0,96309.0,0.0001066]
[1739364278611,0.0861,96317.0,96309.0,0.0001066]
[1739364282121,0.0861,96317.0,96301.0,0.16343184]
[1739364282526,0.0861,96317.0,96302.0,0.00670884]
[1739364283084,0.0811,96317.0,96302.0,0.00670884]
[1739364283534,0.0841,96317.0,96302.0,0.00670884]
[1739364283748,0.0841,96317.0,96300.0,0.155763]
[1739364283966,0.0831,96317.0,96303.0,0.00671549]
[1739364284153,0.0831,96317.0,96301.0,0.0067163]
[1739364284332,0.0841,96317.0,96304.0,0.00671509]
[1739364284532,0.0841,96317.0,96302.0,0.00671589]
[1739364284758,0.0831,96317.0,96305.0,0.00671469]
[1739364284963,0.0851,96317.0,96304.0,0.0077609]
[1739364285131,0.0891,96317.0,96306.0,0.00671428]
[1739364285341,0.0871,96317.0,96305.0,0.00671469]
[1739364285653,0.0901,96317.0,96303.0,0.04523218]
[1739364285897,0.0881,96317.0,96306.0,0.00559524]
[1739364286098,0.0881,96317.0,96304.0,0.00559604]
[1739364286300,0.0841,96317.0,96307.0,0.00559483]
[1739364286503,0.0871,96317.0,96305.0,0.00559564]
[1739364286692,0.0851,96317.0,96300.0,0.10250365]
[1739364286932,0.0851,96317.0,96306.0,0.00559524]
[1739364287067,0.0831,96317.0,96300.0,0.25826665]
[1739364287274,0.0831,96317.0,96307.0,0.00559483]
[1739364287537,0.0861,96317.0,96300.0,0.25826665]
[1739364287852,0.0831,96317.0,96301.0,0.00559725]
[1739364288057,0.0831,96317.0,96301.0,0.16135825]
[1739364288277,0.0841,96317.0,96301.0,0.16135825]
[1739364288502,0.0861,96317.0,96301.0,0.00559725]
[1739364289116,0.0881,96317.0,96301.0,0.16135825]
[1739364289320,0.0881,96317.0,96302.0,0.155759]
[1739364289580,0.0851,96317.0,96302.0,0.155759]
[1739364289806,0.0851,96317.0,96303.0,0.00559645]
[1739364290011,0.0881,96317.0,96303.0,0.00559645]
[1739364290362,0.0851,96317.0,96303.0,0.00559645]
[1739364290748,0.0881,96317.0,96300.0,0.10250365]
[1739364291104,0.0881,96317.0,96301.0,0.00559725]
[1739364291314,0.0851,96317.0,96301.0,0.00559725]
[1739364291612,0.0851,96317.0,96301.0,0.16135725]
[1739364291813,0.0831,96317.0,96301.0,0.16135725]
[1739364291993,0.0811,96317.0,96301.0,0.16135725]
[1739364292196,0.0831,96317.0,96301.0,0.16135725]
[1739364292574,0.0841,96317.0,96301.0,0.00559725]
[1739364292776,0.0861,96317.0,96302.0,0.155759]
[1739364292976,0.0831,96317.0,96302.0,0.155759]
[1739364293387,0.0861,96317.0,96303.0,0.00559645]
[1739364293566,0.0841,96317.0,96303.0,0.00559645]
[1739364293981,0.0831,96317.0,96303.0,0.00559645]
[1739364294151,0.0861,96317.0,96300.0,0.10261025]
[1739364294367,0.08632387,96317.0,96304.0,0.00559784]
[1739364294535,0.08632387,96317.0,96302.0,0.155759]
[1739364294748,0.08632387,96317.0,96305.0,0.00559744]
[1739364295089,0.08632387,96317.0,96306.0,0.00559704]
[1739364295258,0.08432387,96317.0,96306.0,0.00559704]
[1739364295427,0.08432387,96317.0,96301.0,0.15576]
[1739364295629,0.03090094,96320.0,96307.0,0.00559663]
[1739364295829,0.03090094,96320.0,96301.0,0.15576]
[1739364296096,0.002,96317.0,96308.0,0.00559623]
[1739364296227,0.03090094,96320.0,96301.0,0.15576]
[1739364296443,0.03090094,96320.0,96309.0,0.00559583]
[1739364296644,0.005,96317.0,96302.0,0.155759]
[1739364296890,0.005,96317.0,96310.0,0.00559542]
[1739364297097,0.002,96317.0,96302.0,0.155759]
[1739364297482,0.03590094,96320.0,96303.0,0.00559825]
[1739364297693,0.09525113,96313.0,96303.0,0.16135625]
[1739364297895,0.09525113,96313.0,96304.0,0.155756]
[1739364298101,0.09525113,96313.0,96303.0,0.16135625]
[1739364298328,0.09525113,96313.0,96305.0,0.00540137]
[1739364298533,0.09525113,96313.0,96304.0,0.00540177]
[1739364298749,0.0821,96312.0,96306.0,0.00540096]
[1739364298868,0.0821,96312.0,96305.0,0.00540137]
[1739364299074,0.0821,96312.0,96304.0,0.00778144]
[1739364299075,0.0821,96312.0,96307.0,0.00540056]
[1739364299279,0.0821,96310.0,96304.0,0.00778144]
[1739364299498,0.15,96319.0,96304.0,0.00778144]
[1739364299499,0.237855,96305.0,96304.0,0.00778144]
[1739364299701,0.38905865,96305.0,96304.0,0.00778144]
[1739364299902,0.155756,96304.0,96303.0,0.001]
[1739364300097,0.34035965,96304.0,96303.0,0.001]
[1739364300298,0.10250365,96304.0,96300.0,0.0001066]
[1739364300503,0.0821,96302.0,96300.0,0.0001066]
[1739364300705,0.0821,96302.0,96288.0,8.09091295]
[1739364300956,0.09525113,96298.0,96288.0,8.09091295]
[1739364301185,0.09322003,96298.0,96289.0,0.00417839]
[1739364301863,0.07510436,96297.0,96290.0,0.00142804]
[1739364303441,0.07610436,96297.0,96290.0,0.00142804]
[1739364305204,0.07810436,96297.0,96290.0,0.00142804]
[1739364305763,0.07810436,96297.0,96288.0,7.97151938]
[1739364305969,0.07810436,96297.0,96291.0,0.0070036]
[1739364306219,0.07810436,96297.0,96292.0,0.00106671]
[1739364306363,0.07810436,96297.0,96292.0,0.00699975]
[1739364306573,0.07710436,96297.0,96288.0,7.97151938]
[1739364306770,0.07710436,96297.0,96293.0,0.00699592]
[1739364306977,0.07510436,96297.0,96288.0,7.97151938]
[1739364307484,0.07510436,96297.0,96289.0,0.00701127]
[1739364308169,0.07710436,96297.0,96289.0,0.00701127]
[1739364308681,0.07510436,96297.0,96289.0,0.00701127]
[1739364308908,0.07810436,96297.0,96289.0,0.00701127]
[1739364309337,0.08010436,96297.0,96289.0,0.00701127]
[1739364310202,0.08410436,96297.0,96289.0,0.00701127]
[1739364310823,0.08410436,96297.0,96288.0,7.85353065]
[1739364312439,0.07910436,96297.0,96288.0,7.85353065]
[1739364312630,0.07510436,96297.0,96288.0,7.85353065]
[1739364312809,0.08210436,96297.0,96288.0,7.85353065]
[1739364316394,0.08210436,96297.0,96288.0,7.72853065]
[1739364320123,0.08232823,96297.0,96288.0,7.72853065]
[1739364320763,0.08232823,96297.0,96288.0,7.60353065]
[1739364324538,0.0832,96296.0,96288.0,7.60353065]
[1739364325232,0.155774,96294.0,96288.0,7.60353065]
[1739364325493,0.290894,96296.0,96288.0,7.60353065]
[1739364325686,0.155772,96295.0,96288.0,7.60353065]
[1739364325892,0.155772,96295.0,96288.0,7.47853065]
[1739364326252,0.0862,96296.0,96288.0,7.47853065]
[1739364326451,0.0832,96296.0,96288.0,7.4785748]
[1739364326792,0.002,96295.0,96288.0,7.4785748]
[1739364326994,0.157771,96295.0,96288.0,7.4785748]
[1739364327192,0.002,96295.0,96288.0,7.4785748]
[1739364327514,0.002,96294.0,96288.0,7.4785748]
[1739364328268,0.002,96295.0,96288.0,7.4785748]
[1739364328806,0.002,96294.0,96288.0,7.4785748]
[1739364329376,0.0862,96296.0,96288.0,7.4785748]
[1739364329609,0.0832,96296.0,96288.0,7.4785748]
[1739364329984,0.002,96294.0,96288.0,7.4785748]
[1739364330431,0.0832,96296.0,96288.0,7.4785748]
[1739364330813,0.002,96295.0,96288.0,7.3535748]
[1739364331038,0.0862,96296.0,96288.0,7.3535748]
[1739364331475,0.002,96294.0,96288.0,7.3535748]
[1739364332238,0.0832,96296.0,96288.0,7.3535748]
[1739364332473,0.002,96294.0,96288.0,7.3535748]
[1739364332925,0.0852,96296.0,96288.0,7.3535748]
[1739364333232,0.0852,96296.0,96288.0,7.3545748]
[1739364333862,0.0832,96296.0,96288.0,7.3545748]
[1739364334062,0.002,96294.0,96288.0,7.3535748]
[1739364335058,0.0842,96296.0,96288.0,7.3535748]
[1739364335265,0.001,96294.0,96288.0,7.3535748]
[1739364335824,0.001,96294.0,96288.0,7.2285748]
[1739364336651,0.001,96294.0,96288.0,7.2295748]
[1739364337928,0.001,96294.0,96293.0,0.155774]
[1739364339121,0.00022387,96297.0,96296.0,0.155769]
[1739364340757,0.00022387,96297.0,96294.0,0.207695]
[1739364341521,0.00122387,96297.0,96296.0,0.155769]
[1739364342163,0.00222387,96297.0,96296.0,0.155769]
[1739364342318,0.00022387,96297.0,96296.0,0.155769]
[1739364342751,0.00122387,96297.0,96296.0,0.155769]
[1739364343153,0.00122387,96297.0,96296.0,0.162769]
[1739364344462,0.00122387,96297.0,96296.0,0.26527265]
[1739364345776,0.00122387,96297.0,96296.0,0.10950365]
[1739364345982,0.00122387,96297.0,96296.0,0.26527265]
[1739364350708,0.00122387,96297.0,96296.0,0.14027265]
[1739364352233,0.12135185,96333.0,96293.0,0.0462]
[1739364352468,0.09530486,96320.0,96306.0,0.155753]
[1739364353017,0.09530486,96320.0,96307.0,0.155751]
[1739364353455,0.09530486,96320.0,96293.0,0.0462]
[1739364353655,0.09530486,96320.0,96308.0,0.15575]
[1739364354042,0.09530486,96320.0,96305.0,0.207672]
[1739364354234,0.09530486,96320.0,96309.0,0.155747]
[1739364354798,0.11530486,96320.0,96309.0,0.155747]
[1739364355194,0.17810486,96320.0,96309.0,0.155747]
[1739364355396,0.19810486,96320.0,96311.0,0.155744]
[1739364355597,0.19810486,96320.0,96309.0,0.002]
[1739364355830,0.19810486,96320.0,96312.0,0.155742]
[1739364356154,0.1028,96320.0,96313.0,0.155742]
[1739364356477,0.0968,96320.0,96313.0,0.155742]
[1739364356861,0.0828,96320.0,96313.0,0.155742]
[1739364357089,0.1008,96320.0,96313.0,0.155742]
[1739364357425,0.10267644,96320.0,96313.0,0.155742]
[1739364357773,0.10267644,96320.0,96311.0,0.156744]
[1739364357956,0.10667644,96320.0,96311.0,0.001]
[1739364358320,0.09667644,96320.0,96306.0,0.20767]
[1739364358823,0.10167644,96320.0,96309.0,0.155747]
[1739364359276,0.10367644,96320.0,96309.0,0.155747]
[1739364359484,0.10167644,96320.0,96310.0,0.155746]
[1739364359865,0.10067644,96320.0,96294.0,0.207695]
[1739364360217,0.09867644,96320.0,96294.0,0.207695]
[1739364360421,0.10367644,96320.0,96309.0,0.155748]
[1739364360552,0.10367644,96320.0,96310.0,0.155746]
[1739364360740,0.10067644,96320.0,96304.0,0.207675]
[1739364360934,0.10067644,96320.0,96311.0,0.155744]
[1739364361184,0.10367644,96320.0,96311.0,0.155744]
[1739364361643,0.10067644,96320.0,96299.0,0.0010383]
[1739364361815,0.09667644,96320.0,96299.0,0.207686]
[1739364361985,0.10167644,96320.0,96308.0,0.15575]
[1739364362192,0.09967644,96320.0,96305.0,0.207671]
[1739364362549,0.09967644,96320.0,96303.0,0.207676]
[1739364362688,0.10167644,96320.0,96308.0,0.155749]
[1739364362888,0.09967644,96320.0,96308.0,0.155749]
[1739364363363,0.09867644,96320.0,96293.0,0.253898]
[1739364363571,0.10167644,96320.0,96305.0,0.155753]
[1739364363900,0.10167644,96320.0,96293.0,0.253898]
[1739364364103,0.09867644,96320.0,96306.0,0.155753]
[1739364364335,0.10167644,96320.0,96306.0,0.155753]
[1739364364542,0.10167644,96320.0,96305.0,0.155755]
[1739364364664,0.09967644,96320.0,96297.0,0.20769]
[1739364364867,0.09530486,96310.0,96293.0,0.0462]
[1739364365073,0.09530486,96310.0,96300.0,0.155762]
[1739364366504,0.09530486,96310.0,96296.0,0.00122386]
[1739364366706,0.09530486,96310.0,96301.0,0.15576]
[1739364367356,0.09530486,96310.0,96302.0,0.155759]
[1739364367566,0.09530486,96310.0,96301.0,0.155761]
[1739364368283,0.09530486,96310.0,96301.0,0.156761]
[1739364369071,0.09530486,96310.0,96302.0,0.155759]
[1739364369276,0.09530486,96310.0,96301.0,0.001]
[1739364369488,0.09530486,96310.0,96302.0,0.155759]
[1739364369832,0.09530486,96310.0,96301.0,0.001]
[1739364370015,0.0829066,96320.0,96296.0,0.00022386]
[1739364370157,0.09530486,96311.0,96297.0,0.155767]
[1739364370356,0.0782,96310.0,96297.0,0.155767]
[1739364370823,0.0782,96310.0,96296.0,0.00022386]
[1739364371017,0.0782,96310.0,96302.0,0.002]
[1739364371396,0.0782,96310.0,96296.0,0.00022386]
[1739364371614,0.0792,96310.0,96298.0,0.155765]
[1739364372392,0.0792,96310.0,96296.0,0.00022386]
[1739364372624,0.0792,96310.0,96298.0,0.155764]
[1739364372820,0.0812,96310.0,96298.0,0.155764]
[1739364373159,0.0802,96310.0,96298.0,0.155764]
[1739364373442,0.0822,96310.0,96299.0,0.155764]
[1739364373780,0.0802,96310.0,96298.0,0.155766]
[1739364374083,0.0822,96310.0,96298.0,0.155766]
[1739364374495,0.0802,96310.0,96296.0,0.00022386]
[1739364374925,0.0822,96310.0,96297.0,0.155767]
[1739364375368,0.09606359,96310.0,96297.0,0.155767]
[1739364375569,0.09406359,96310.0,96297.0,0.155767]
[1739364375715,0.09406359,96310.0,96299.0,0.155764]
[1739364375913,0.09606359,96310.0,96297.0,0.155766]
[1739364376255,0.09406359,96310.0,96298.0,0.155766]
[1739364376473,0.09806359,96310.0,96296.0,0.00022386]
[1739364376670,0.09806359,96310.0,96302.0,0.155758]
[1739364376897,0.09606359,96310.0,96302.0,0.155758]